{"text_format":"1","workbook":"xlsx","n_sheets":10,"sheets":["Tillegg noter","N Ikke besvart","N Ja","N Nei","N IA","Årsberetning - små","Å Ikke besvart","Å Ja","Å Nei","Å IA"],"not_rendered":{"charts":0,"images":0,"macros":1,"external_links":0,"defined_names":9,"comments":0,"pivot_tables":0},"unopened":[],"bounds":{"document_bytes":16777216,"sheet_cells":100000,"rows_first":2000,"rows_last":500,"rows_between":2000,"halvings":0,"cell_chars":16384,"cell_head_chars":4096},"cells_cut":0,"cells_raw":0,"read":"whole","date_system":"1900"}

{"sheet":"Tillegg noter","index":0,"n_rows":39,"n_cols":11,"rows_kept":39,"cut":false,"hidden":false,"merged":[[10,2,10,3],[11,2,11,3],[12,2,12,3],[1,4,1,7],[0,4,0,7],[6,2,6,3],[7,2,7,3],[8,2,8,3],[9,2,9,3]]}
["*Noteopplysninger - tilleggskrav - privatskoler",null,null,"Utfylt:",null,null,null,null,null,"Ikke besvart:",{"$f":"+'N Ikke besvart'!E1","v":7}]
["Klient:",null,null,"Review:",null,null,null,null,null,"Ja-svar:",{"$f":"+'N Ja'!C1","v":0}]
["År:",2023,null,null,null,null,null,null,null,"Nei-svar:",{"$f":"_xlfn.AGGREGATE(3,5,F7:F530)","v":0}]
["Vær oppmerksom på at denne sjekklisten gjelder tilleggskrav for privatskoler og skal brukes i tillegg til den ordinære sjekklisten for noter og formelle forhold.",null,null,null,null,null,null,null,null,"IA-svar:",{"$f":"_xlfn.AGGREGATE(3,5,G7:G531)","v":0}]
[null,"Spørsmål","Ref. ",null,"Ja","Nei","I/A","Kommentar",null,"Sum:",{"$f":"_xlfn.AGGREGATE(3,4,A7:A375)","v":7}]
[null,"Denne tilleggssjekklisten gjelder for regnskapspliktige som er underlagt Økonomiforskrift til privatskolelova. Krav til noteopplysninger utover kravene i regnskapsloven fremgår av forskriftens § 8-2.","Økonomiforskrift til privatskolelova"]
[1,"Er det i note gitt opplysninger om offentlige finansieringskilder, som spesifiserer hvem som har ytt midlene og formålet med ytelsen?","Økonomiforskriften § 8-2 a)",null,null,null,null,null,null,{"$f":"IF(F7<>\"\",\"Du har satt X for at forholdet ikke er avklart. Gi en nærmere foklaring i kommentarfeltet.\",\"\")","v":""}]
[{"$f":"+A7+1","v":2},"Er det gitt opplysninger om skolepengesatsene?","Økonomiforskriften § 8-2 b)",null,null,null,null,null,null,""]
[{"$f":"+A8+1","v":3},"Dersom skolen ikke tar skolepenger, er det opplyst om dette?","Økonomiforskriften § 8-2 b)",null,null,null,null,null,null,""]
[4,"Er det gitt særskilte opplysninger om disponering av overskudd, som viser beregning av hvor mye skolen har diponert i forhold til totalt inntektsgrunnlag, både i kronebeløp og i prosent av inntektsgrunnlaget?","Økonomiforskriften § 8-2 c)",null,null,null,null,null,null,""]
[5,"Er det opplyst om handel med skolens eiere eller deres nærstående? Spesifikasjonen skal vise hvem skolen har handlet med, hva slags vare eller tjeneste som er kjøpt, og totalbeløp for de ulike varene og tjenestene.","Økonomiforskriften § 8-2 d)",null,null,null,null,null,null,""]
[6,"Dersom skolen ikke har hatt transaksjoner med skolens eiere eller nærstående, er det opplyst om dette?","Økonomiforskriften § 8-2 d)",null,null,null,null,null,null,""]
[7,"Dersom skolen har tilleggsvirksomhet etter § 2-2  og § 7-1, er det opplyst om hvordan felleskostnadene er fordelt på avdelingene?","Økonomiforskriften § 8-2 e), jf § 2-2 og § 7-1",null,null,null,null,null,null,""]
[null,null,null,null,null,null,null,null,null,""]
[null,null,null,null,null,null,null,null,null,""]
[null,null,null,null,null,null,null,null,null,""]
[null,null,null,null,null,null,null,null,null,""]
[null,null,null,null,null,null,null,null,null,""]
[null,null,null,null,null,null,null,null,null,""]
[null,null,null,null,null,null,null,null,null,""]
[null,null,null,null,null,null,null,null,null,""]
[null,null,null,null,null,null,null,null,null,""]
[null,null,null,null,null,null,null,null,null,""]
[null,null,null,null,null,null,null,null,null,""]
[null,null,null,null,null,null,null,null,null,""]
[null,null,null,null,null,null,null,null,null,""]
[null,null,null,null,null,null,null,null,null,""]
[null,null,null,null,null,null,null,null,null,""]
[null,null,null,null,null,null,null,null,null,""]
[null,null,null,null,null,null,null,null,null,""]
[null,null,null,null,null,null,null,null,null,""]
[null,null,null,null,null,null,null,null,null,""]
[null,null,null,null,null,null,null,null,null,""]
[null,null,null,null,null,null,null,null,null,""]
[null,null,null,null,null,null,null,null,null,""]
[null,null,null,null,null,null,null,null,null,""]
[null,null,null,null,null,null,null,null,null,""]
[null,null,null,null,null,null,null,null,null,""]
[null,null,null,null,null,null,null,null,null,""]

{"sheet":"N Ikke besvart","index":1,"n_rows":8,"n_cols":10,"rows_kept":8,"cut":false,"hidden":true,"merged":[]}
[null,null,null,null,{"$f":"COUNTIF(E2:E434,\"=0\")","v":7},"Ikke besvart",{"$f":"'Tillegg noter'!B2","v":0},{"$f":"'Tillegg noter'!B3","v":2023},null,"Kommentarer"]
[{"$f":"'Tillegg noter'!A7","v":1},{"$f":"IF('Tillegg noter'!E7<>\"\",1,0)","v":0},{"$f":"IF('Tillegg noter'!F7<>\"\",1,0)","v":0},{"$f":"IF('Tillegg noter'!G7<>\"\",1,0)","v":0},{"$f":"SUM(B2:D2)","v":0},{"$f":"IF($E2=0,'Tillegg noter'!A7,\"\")","v":1},{"$f":"IF($E2=0,'Tillegg noter'!B7,\"\")","v":"Er det i note gitt opplysninger om offentlige finansieringskilder, som spesifiserer hvem som har ytt midlene og formålet med ytelsen?"},null,null,{"$f":"IF(E2=0,'Tillegg noter'!H7,\" \")","v":0}]
[{"$f":"'Tillegg noter'!A8","v":2},{"$f":"IF('Tillegg noter'!E8<>\"\",1,0)","v":0},{"$f":"IF('Tillegg noter'!F8<>\"\",1,0)","v":0},{"$f":"IF('Tillegg noter'!G8<>\"\",1,0)","v":0},0,{"$f":"IF($E3=0,'Tillegg noter'!A8,\"\")","v":2},{"$f":"IF($E3=0,'Tillegg noter'!B8,\"\")","v":"Er det gitt opplysninger om skolepengesatsene?"},null,null,{"$f":"IF(E3=0,'Tillegg noter'!H8,\" \")","v":0}]
[{"$f":"'Tillegg noter'!A9","v":3},{"$f":"IF('Tillegg noter'!E9<>\"\",1,0)","v":0},{"$f":"IF('Tillegg noter'!F9<>\"\",1,0)","v":0},{"$f":"IF('Tillegg noter'!G9<>\"\",1,0)","v":0},0,{"$f":"IF($E4=0,'Tillegg noter'!A9,\"\")","v":3},{"$f":"IF($E4=0,'Tillegg noter'!B9,\"\")","v":"Dersom skolen ikke tar skolepenger, er det opplyst om dette?"},null,null,{"$f":"IF(E4=0,'Tillegg noter'!H9,\" \")","v":0}]
[{"$f":"'Tillegg noter'!A10","v":4},{"$f":"IF('Tillegg noter'!E10<>\"\",1,0)","v":0},{"$f":"IF('Tillegg noter'!F10<>\"\",1,0)","v":0},{"$f":"IF('Tillegg noter'!G10<>\"\",1,0)","v":0},0,{"$f":"IF($E5=0,'Tillegg noter'!A10,\"\")","v":4},{"$f":"IF($E5=0,'Tillegg noter'!B10,\"\")","v":"Er det gitt særskilte opplysninger om disponering av overskudd, som viser beregning av hvor mye skolen har diponert i forhold til totalt inntektsgrunnlag, både i kronebeløp og i prosent av inntektsgrunnlaget?"},null,null,{"$f":"IF(E5=0,'Tillegg noter'!H10,\" \")","v":0}]
[{"$f":"'Tillegg noter'!A11","v":5},{"$f":"IF('Tillegg noter'!E11<>\"\",1,0)","v":0},{"$f":"IF('Tillegg noter'!F11<>\"\",1,0)","v":0},{"$f":"IF('Tillegg noter'!G11<>\"\",1,0)","v":0},0,{"$f":"IF($E6=0,'Tillegg noter'!A11,\"\")","v":5},{"$f":"IF($E6=0,'Tillegg noter'!B11,\"\")","v":"Er det opplyst om handel med skolens eiere eller deres nærstående? Spesifikasjonen skal vise hvem skolen har handlet med, hva slags vare eller tjeneste som er kjøpt, og totalbeløp for de ulike varene og tjenestene."},null,null,{"$f":"IF(E6=0,'Tillegg noter'!H11,\" \")","v":0}]
[{"$f":"'Tillegg noter'!A12","v":6},{"$f":"IF('Tillegg noter'!E12<>\"\",1,0)","v":0},{"$f":"IF('Tillegg noter'!F12<>\"\",1,0)","v":0},{"$f":"IF('Tillegg noter'!G12<>\"\",1,0)","v":0},0,{"$f":"IF($E7=0,'Tillegg noter'!A12,\"\")","v":6},{"$f":"IF($E7=0,'Tillegg noter'!B12,\"\")","v":"Dersom skolen ikke har hatt transaksjoner med skolens eiere eller nærstående, er det opplyst om dette?"},null,null,{"$f":"IF(E7=0,'Tillegg noter'!H12,\" \")","v":0}]
[{"$f":"'Tillegg noter'!A13","v":7},{"$f":"IF('Tillegg noter'!E13<>\"\",1,0)","v":0},{"$f":"IF('Tillegg noter'!F13<>\"\",1,0)","v":0},{"$f":"IF('Tillegg noter'!G13<>\"\",1,0)","v":0},0,{"$f":"IF($E8=0,'Tillegg noter'!A13,\"\")","v":7},{"$f":"IF($E8=0,'Tillegg noter'!B13,\"\")","v":"Dersom skolen har tilleggsvirksomhet etter § 2-2  og § 7-1, er det opplyst om hvordan felleskostnadene er fordelt på avdelingene?"},null,null,{"$f":"IF(E8=0,'Tillegg noter'!H13,\" \")","v":0}]

{"sheet":"N Ja","index":2,"n_rows":8,"n_cols":7,"rows_kept":8,"cut":false,"hidden":true,"merged":[]}
[null,null,{"$f":"COUNTIF(B2:B458,\"=1\")","v":0},"Svart Ja",{"$f":"'Tillegg noter'!B2","v":0},{"$f":"'Tillegg noter'!B3","v":2023},"Kommentarer"]
[{"$f":"'Tillegg noter'!A7","v":1},{"$f":"IF('Tillegg noter'!E7<>\"\",1,0)","v":0},{"$f":"SUM(B2:B2)","v":0},{"$f":"IF($B2=1,'Tillegg noter'!A7,\"\")","v":""},{"$f":"IF($B2=1,'Tillegg noter'!B7,\"\")","v":""},null,{"$f":"IF(C2=1,'Tillegg noter'!H7,\" \")","v":" "}]
[{"$f":"'Tillegg noter'!A8","v":2},{"$f":"IF('Tillegg noter'!E8<>\"\",1,0)","v":0},0,{"$f":"IF($B3=1,'Tillegg noter'!A8,\"\")","v":""},{"$f":"IF($B3=1,'Tillegg noter'!B8,\"\")","v":""},null,{"$f":"IF(C3=1,'Tillegg noter'!H8,\" \")","v":" "}]
[{"$f":"'Tillegg noter'!A9","v":3},{"$f":"IF('Tillegg noter'!E9<>\"\",1,0)","v":0},0,{"$f":"IF($B4=1,'Tillegg noter'!A9,\"\")","v":""},{"$f":"IF($B4=1,'Tillegg noter'!B9,\"\")","v":""},null,{"$f":"IF(C4=1,'Tillegg noter'!H9,\" \")","v":" "}]
[{"$f":"'Tillegg noter'!A10","v":4},{"$f":"IF('Tillegg noter'!E10<>\"\",1,0)","v":0},0,{"$f":"IF($B5=1,'Tillegg noter'!A10,\"\")","v":""},{"$f":"IF($B5=1,'Tillegg noter'!B10,\"\")","v":""},null,{"$f":"IF(C5=1,'Tillegg noter'!H10,\" \")","v":" "}]
[{"$f":"'Tillegg noter'!A11","v":5},{"$f":"IF('Tillegg noter'!E11<>\"\",1,0)","v":0},0,{"$f":"IF($B6=1,'Tillegg noter'!A11,\"\")","v":""},{"$f":"IF($B6=1,'Tillegg noter'!B11,\"\")","v":""},null,{"$f":"IF(C6=1,'Tillegg noter'!H11,\" \")","v":" "}]
[{"$f":"'Tillegg noter'!A12","v":6},{"$f":"IF('Tillegg noter'!E12<>\"\",1,0)","v":0},0,{"$f":"IF($B7=1,'Tillegg noter'!A12,\"\")","v":""},{"$f":"IF($B7=1,'Tillegg noter'!B12,\"\")","v":""},null,{"$f":"IF(C7=1,'Tillegg noter'!H12,\" \")","v":" "}]
[{"$f":"'Tillegg noter'!A13","v":7},{"$f":"IF('Tillegg noter'!E13<>\"\",1,0)","v":0},0,{"$f":"IF($B8=1,'Tillegg noter'!A13,\"\")","v":""},{"$f":"IF($B8=1,'Tillegg noter'!B13,\"\")","v":""},null,{"$f":"IF(C8=1,'Tillegg noter'!H13,\" \")","v":" "}]

{"sheet":"N Nei","index":3,"n_rows":8,"n_cols":7,"rows_kept":8,"cut":false,"hidden":true,"merged":[]}
[null,null,{"$f":"COUNTIF(B2:B481,\"=1\")","v":0},"Svart Nei",{"$f":"'Tillegg noter'!B2","v":0},{"$f":"'Tillegg noter'!B3","v":2023},"Kommentarer"]
[{"$f":"'Tillegg noter'!A7","v":1},{"$f":"IF('Tillegg noter'!F7<>\"\",1,0)","v":0},{"$f":"SUM(B2:B2)","v":0},{"$f":"IF($B2=1,'Tillegg noter'!A7,\"\")","v":""},{"$f":"IF($B2=1,'Tillegg noter'!B7,\"\")","v":""},null,{"$f":"IF(C2=1,'Tillegg noter'!H7,\" \")","v":" "}]
[{"$f":"'Tillegg noter'!A8","v":2},{"$f":"IF('Tillegg noter'!F8<>\"\",1,0)","v":0},0,{"$f":"IF($B3=1,'Tillegg noter'!A8,\"\")","v":""},{"$f":"IF($B3=1,'Tillegg noter'!B8,\"\")","v":""},null,{"$f":"IF(C3=1,'Tillegg noter'!H8,\" \")","v":" "}]
[{"$f":"'Tillegg noter'!A9","v":3},{"$f":"IF('Tillegg noter'!F9<>\"\",1,0)","v":0},0,{"$f":"IF($B4=1,'Tillegg noter'!A9,\"\")","v":""},{"$f":"IF($B4=1,'Tillegg noter'!B9,\"\")","v":""},null,{"$f":"IF(C4=1,'Tillegg noter'!H9,\" \")","v":" "}]
[{"$f":"'Tillegg noter'!A10","v":4},{"$f":"IF('Tillegg noter'!F10<>\"\",1,0)","v":0},0,{"$f":"IF($B5=1,'Tillegg noter'!A10,\"\")","v":""},{"$f":"IF($B5=1,'Tillegg noter'!B10,\"\")","v":""},null,{"$f":"IF(C5=1,'Tillegg noter'!H10,\" \")","v":" "}]
[{"$f":"'Tillegg noter'!A11","v":5},{"$f":"IF('Tillegg noter'!F11<>\"\",1,0)","v":0},0,{"$f":"IF($B6=1,'Tillegg noter'!A11,\"\")","v":""},{"$f":"IF($B6=1,'Tillegg noter'!B11,\"\")","v":""},null,{"$f":"IF(C6=1,'Tillegg noter'!H11,\" \")","v":" "}]
[{"$f":"'Tillegg noter'!A12","v":6},{"$f":"IF('Tillegg noter'!F12<>\"\",1,0)","v":0},0,{"$f":"IF($B7=1,'Tillegg noter'!A12,\"\")","v":""},{"$f":"IF($B7=1,'Tillegg noter'!B12,\"\")","v":""},null,{"$f":"IF(C7=1,'Tillegg noter'!H12,\" \")","v":" "}]
[{"$f":"'Tillegg noter'!A13","v":7},{"$f":"IF('Tillegg noter'!F13<>\"\",1,0)","v":0},0,{"$f":"IF($B8=1,'Tillegg noter'!A13,\"\")","v":""},{"$f":"IF($B8=1,'Tillegg noter'!B13,\"\")","v":""},null,{"$f":"IF(C8=1,'Tillegg noter'!H13,\" \")","v":" "}]

{"sheet":"N IA","index":4,"n_rows":8,"n_cols":7,"rows_kept":8,"cut":false,"hidden":true,"merged":[]}
[null,null,{"$f":"COUNTIF(B2:B433,\"=1\")","v":0},"Svart IA",{"$f":"'Tillegg noter'!B2","v":0},{"$f":"'Tillegg noter'!B3","v":2023},"Kommentarer"]
[{"$f":"'Tillegg noter'!A9","v":3},{"$f":"IF('Tillegg noter'!G9<>\"\",1,0)","v":0},{"$f":"SUM(B2:B2)","v":0},{"$f":"IF($B2=1,'Tillegg noter'!A9,\"\")","v":""},{"$f":"IF($B2=1,'Tillegg noter'!B9,\"\")","v":""},null,{"$f":"IF(C2=1,'Tillegg noter'!H9,\" \")","v":" "}]
[{"$f":"'Tillegg noter'!A10","v":4},{"$f":"IF('Tillegg noter'!G10<>\"\",1,0)","v":0},0,{"$f":"IF($B3=1,'Tillegg noter'!A10,\"\")","v":""},{"$f":"IF($B3=1,'Tillegg noter'!B10,\"\")","v":""},null,{"$f":"IF(C3=1,'Tillegg noter'!H10,\" \")","v":" "}]
[{"$f":"'Tillegg noter'!A7","v":1},{"$f":"IF('Tillegg noter'!G7<>\"\",1,0)","v":0},0,{"$f":"IF($B4=1,'Tillegg noter'!A7,\"\")","v":""},{"$f":"IF($B4=1,'Tillegg noter'!B7,\"\")","v":""},null,{"$f":"IF(C4=1,'Tillegg noter'!H7,\" \")","v":" "}]
[{"$f":"'Tillegg noter'!A8","v":2},{"$f":"IF('Tillegg noter'!G8<>\"\",1,0)","v":0},0,{"$f":"IF($B5=1,'Tillegg noter'!A8,\"\")","v":""},{"$f":"IF($B5=1,'Tillegg noter'!B8,\"\")","v":""},null,{"$f":"IF(C5=1,'Tillegg noter'!H8,\" \")","v":" "}]
[{"$f":"'Tillegg noter'!A11","v":5},{"$f":"IF('Tillegg noter'!G11<>\"\",1,0)","v":0},0,{"$f":"IF($B6=1,'Tillegg noter'!A11,\"\")","v":""},{"$f":"IF($B6=1,'Tillegg noter'!B11,\"\")","v":""},null,{"$f":"IF(C6=1,'Tillegg noter'!H11,\" \")","v":" "}]
[{"$f":"'Tillegg noter'!A12","v":6},{"$f":"IF('Tillegg noter'!G12<>\"\",1,0)","v":0},0,{"$f":"IF($B7=1,'Tillegg noter'!A12,\"\")","v":""},{"$f":"IF($B7=1,'Tillegg noter'!B12,\"\")","v":""},null,{"$f":"IF(C7=1,'Tillegg noter'!H12,\" \")","v":" "}]
[{"$f":"'Tillegg noter'!A13","v":7},{"$f":"IF('Tillegg noter'!G13<>\"\",1,0)","v":0},0,{"$f":"IF($B8=1,'Tillegg noter'!A13,\"\")","v":""},{"$f":"IF($B8=1,'Tillegg noter'!B13,\"\")","v":""},null,{"$f":"IF(C8=1,'Tillegg noter'!H13,\" \")","v":" "}]

{"sheet":"Årsberetning - små","index":5,"n_rows":63,"n_cols":11,"rows_kept":63,"cut":false,"hidden":false,"merged":[[39,0,41,1],[9,0,10,1],[15,0,16,1],[0,4,0,7],[1,4,1,7],[3,0,3,7],[6,1,7,1],[11,2,11,3],[12,2,12,3],[13,2,13,3],[14,2,14,3],[17,2,17,3],[18,2,18,3],[21,2,21,3],[22,2,22,3],[23,2,23,3],[24,2,24,3],[25,2,25,3],[26,2,26,3],[29,2,29,3],[32,2,32,3],[38,2,38,3],[33,2,33,3],[34,2,34,3],[35,2,35,3],[36,2,36,3],[37,2,37,3]]}
["*Årsberetning - privatskoler som er små foretak",null,null,"Utfylt:",null,null,null,null,null,"Ikke besvart:",{"$f":"+'Å Ikke besvart'!E1","v":25}]
["Klient:",null,null,"Review:",null,null,null,null,null,"Ja-svar:",{"$f":"+'Å Ja'!C1","v":0}]
["År:",2023,null,null,null,null,null,null,null,"Nei-svar:",{"$f":"+'Å Nei'!C1","v":0}]
["Vær oppmerksom på at denne sjekklisten gjelder for privatskoler som er små foretak. \nFor privatskoler som er øvrige foretak skal den ordinære sjekklisten for årsberetning benyttes (egen EGA med denne sjekklisten legges til i revisjonsplanen).",null,null,null,null,null,null,null,null,"IA-svar:",{"$f":"+'Å IA'!C1","v":0}]
[null,"Spørsmål","Ref. ",null,"Ja","Nei","I/A","Kommentar",null,"Sum:",{"$f":"_xlfn.AGGREGATE(2,4,A12:A399)","v":25}]
["Plikt til utarbeidelse"]
[null,"Alle privatskoler skal utarbeide en årsberetning iht Økonomiforskriften § 8-1. Årsberetningen for privatskoler som er små foretak må minst inneholde andre, femte, sjuende, åttende og niende ledd i regnskapsloven § 3-3a. Disse kravene fremkommer av sjekklisten under. NRS 16 Årsberetning inneholder utdypende kommentarer og anbefalinger til kravene i rskl § 3-3a, i sjekklisten nedenfor er det tatt inn henvisninger til standarden hvor kravene i loven er nærmere omtalt.\n","Økonomiforskrift til privatskolelova § 8-1, tredje ledd"]
[null,null,"Regnskapsloven § 3-3a"]
[null,"Årsberetningen for privatskoler som er øvrige foretak skal følge de ordinære kravene i regnskapsloven, og for disse skal ordinær sjekkliste for årsberetning benyttes istedet for sjekklisten under."]
["Rettvisende oversikt",null,"rskl § 3-3a, 2. ledd"]
[null,null,"NRS 16, pkt 2.5"]
[1,"Er det gitt en rettvisende oversikt over utvikling og resultat av foretakets virksomhet og dets stilling?",null,null,null,null,null,null,null,{"$f":"IF(F12<>\"\",\"Du har satt X for at forholdet ikke er avklart. Gi en nærmere foklaring i kommentarfeltet.\",\"\")","v":""}]
[{"$f":"+A12+1","v":2},"Er sentrale risikoer og usikkerhetsfaktorer beskrevet?",null,null,null,null,null,null,null,""]
[{"$f":"+A13+1","v":3},"Er oversikten en balansert og fyllestgjørende analyse av utvikling, resultat og stilling?",null,null,null,null,null,null,null,""]
[4,"Er det gitt opplysninger om eventuelle forsknings- og utviklingsaktiviteter?",null,null,null,null,null,null,null,""]
["Foretakets utsikter",null,"rskl § 3-3a, 5. ledd",null,null,null,null,null,null,""]
[null,null,"NRS 16, pkt 2.6",null,null,null,null,null,null,""]
[{"$f":"+A15+1","v":5},"Er det gitt er redegjørelse som gir grunnlag for å vurdere foretakets framtidige utvikling?",null,null,null,null,null,null,null,""]
[{"$f":"+A18+1","v":6},"Dersom det i tidligere beretninger er gitt opplysninger om fremtidig utvikling, er det informert om årets resultat er i samsvar med forventningen, og er eventuelle avvik begrunnet? ",null,null,null,null,null,null,null,""]
["Fortsatt drift",null,"rskl § 3-3a, 7. ledd",null,null,null,null,null,null,""]
[null,null,"NRS 16, pkt 2.8",null,null,null,null,null,null,""]
[{"$f":"+A19+1","v":7},"Utvilsom fortsatt drift: Er det bekreftet at forutsetningen for fortsatt drift er til stede? ",null,null,null,null,null,null,null,""]
[{"$f":"+A22+1","v":8},"Usikker fortsatt drift: er det redegjort for usikkerheten om fortsatt drift? ",null,null,null,null,null,null,null,""]
[9,"Ved stor usikkerhet og tvil om fortsatt drift, er det opplyst om større poster i årsregnskapet som vil påvirkes dersom forutsetningen om fortsatt drift ikke legges til grunn for vurderingene?",null,null,null,null,null,null,null,""]
[10,"Er virkningene, dersom det er mulig, kvantifisert?",null,null,null,null,null,null,null,""]
[11,"Sannsynlig avvikling: Er det redegjort for hvordan virkelig verdi ved avvikling er beregnet dersom dette ikke fremgår i note til årsregnskapet? ",null,null,null,null,null,null,null,""]
[12,"Dersom styrets handleplikt etter asl/asal § 3-5 er inntrådt, er det opplyst om det er besluttet eller satt i verk tiltak for å sikre selskapets drift, eventuelt å oppløse selskapet?",null,null,null,null,null,null,null,""]
["Resultatdisponering og utbyttegrunnlag",null,"rskl § 3-3a, 8. ledd",null,null,null,null,null,null,""]
[null,null,"NRS 16, pkt 2.9",null,null,null,null,null,null,""]
[{"$f":"+A27+1","v":13},"Dersom resultatregnskapet, noter eller evt. oppstilling av endring i egenkapitalen ikke inneholder forslag til anvendelse av overskudd eller dekning av tap, fremgår forslaget av årsberetningen? ",null,null,null,null,null,null,null,""]
["Arbeidsmiljø",null,"rskl § 3-3a, 9. ledd",null,null,null,null,null,null,""]
[null,null,"NRS 16, pkt 2.10",null,null,null,null,null,null,""]
[{"$f":"+A30+1","v":14},"Er det gitt opplysninger om arbeidsmiljøet? ",null,null,null,null,null,null,null,""]
[{"$f":"+A33+1","v":15},"Er det gitt en oversikt over eventuelle iverksatte tiltak som har betydning for arbeidsmiljøet? ",null,null,null,null,null,null,null,""]
[16,"Er det opplyst om eventuelle skader, herunder både personskader og materielle skader?  ",null,null,null,null,null,null,null,""]
[17,"Er det opplyst om skader som gjelder både ulykker og andre skader, for eksempel slitasje- og belastningsskader?  ",null,null,null,null,null,null,null,""]
[18,"Er det opplyst om eventuelle ulykker, herunder både personskader og materielle skader?  ",null,null,null,null,null,null,null,""]
[19,"Dersom foretaket har minst 5 årsverk, er det opplyst om sykefravær?",null,null,null,null,null,null,null,""]
[20,"Dersom foretaket ikke har ansatte, og således ikke noe arbeidsmiljø, er dette opplyst?",null,null,null,null,null,null,null,""]
["Likestilling og diskriminering",null,null,null,null,null,null,null,null,""]
[null,null,"Lov om likestilling og diskriminering § 26 a)",null,null,null,null,null,null,""]
[null,null,"NRS 16, pkt 2.10",null,null,null,null,null,null,""]
[null,"Følgende arbeidsgivere har utvidet aktivitetsplikt etter likestillings- og diskrimineringsloven § 26, 2. ledd:\n- alle offentlige virksomheter, uavhengig av størrelse, \n- private virksomheter som jevnlig sysselsetter mer enn 50 ansatte,\n- private virksomheter som jevnlig sysselsetter mellom 20 og 50 ansatte, når en av arbeidslivets parter i virksomheten krever det.",null,null,null,null,null,null,null,""]
[null,"For arbeidsgivere med utvidet aktivitetsplikt etter likestillings- og diskrimineringsloven § 26, 2. ledd (se definisjon ovenfor):",null,null,null,null,null,null,null,""]
[{"$f":"+A39+1","v":21},"Er det redegjort for den faktiske tilstanden når det gjelder kjønnslikestilling i virksomheten? ",null,null,null,null,null,null,null,""]
[{"$f":"+A45+1","v":22},"Er det redegjort for hva foretaket gjør for å oppfylle aktivitetsplikten etter likestillings- og diskrimineringsloven § 26?",null,null,null,null,null,null,null,""]
[{"$f":"+A46+1","v":23},"Er redegjørelsen utformet slik at enkeltansattes personlige forhold ikke røpes?",null,null,null,null,null,null,null,""]
[24,"Fremgår resultatene av lønnskartleggingen av redegjørelsen i anonymisert form?",null,null,null,null,null,null,null,""]
[null,"Redegjørelsen om likestilling og oppfyllelse av aktivitetsplikten skal gis i årsberetningen eller i annet offentlig tilgjengelig dokument. Dersom redegjørelsen gis i annet offentlig tilgjengelig dokument, og foretaket har en plikt til å levere årsberetning, skal det i årsberetningen opplyses hvor dokumentet finnes offentlig tilgjengelig.",null,null,null,null,null,null,null,""]
["Redegjørelse etter åpenhetsloven"]
[{"$f":"+A48+1","v":25},"Dersom selskapet er pliktig til å avgi redegjørelse etter åpenhetsloven, er det opplyst i årsberetningen om hvor redegjørelsen er tilgjengelig?","åpenhetsloven § 5"]
[null,null,null,null,null,null,null,null,null,""]
[null,null,null,null,null,null,null,null,null,""]
[null,null,null,null,null,null,null,null,null,""]
[null,null,null,null,null,null,null,null,null,""]
[null,null,null,null,null,null,null,null,null,""]
[null,null,null,null,null,null,null,null,null,""]
[null,null,null,null,null,null,null,null,null,""]
[null,null,null,null,null,null,null,null,null,""]
[null,null,null,null,null,null,null,null,null,""]
[null,null,null,null,null,null,null,null,null,""]
[null,null,null,null,null,null,null,null,null,""]
[null,null,null,null,null,null,null,null,null,""]

{"sheet":"Å Ikke besvart","index":6,"n_rows":26,"n_cols":10,"rows_kept":26,"cut":false,"hidden":true,"merged":[]}
[null,null,null,null,{"$f":"COUNTIF(E2:E424,\"=0\")","v":25},"Ikke besvart",{"$f":"'Årsberetning - små'!B2","v":0},{"$f":"'Årsberetning - små'!B3","v":2023},null,"Kommentarer"]
[{"$f":"'Årsberetning - små'!A12","v":1},{"$f":"IF('Årsberetning - små'!E12<>\"\",1,0)","v":0},{"$f":"IF('Årsberetning - små'!F12<>\"\",1,0)","v":0},{"$f":"IF('Årsberetning - små'!G12<>\"\",1,0)","v":0},{"$f":"SUM(B2:D2)","v":0},{"$f":"IF($E2=0,'Årsberetning - små'!A12,\"\")","v":1},{"$f":"IF($E2=0,'Årsberetning - små'!B12,\"\")","v":"Er det gitt en rettvisende oversikt over utvikling og resultat av foretakets virksomhet og dets stilling?"},null,null,{"$f":"IF(E2=0,'Årsberetning - små'!H12,\" \")","v":0}]
[{"$f":"'Årsberetning - små'!A13","v":2},{"$f":"IF('Årsberetning - små'!E13<>\"\",1,0)","v":0},{"$f":"IF('Årsberetning - små'!F13<>\"\",1,0)","v":0},{"$f":"IF('Årsberetning - små'!G13<>\"\",1,0)","v":0},0,{"$f":"IF($E3=0,'Årsberetning - små'!A13,\"\")","v":2},{"$f":"IF($E3=0,'Årsberetning - små'!B13,\"\")","v":"Er sentrale risikoer og usikkerhetsfaktorer beskrevet?"},null,null,{"$f":"IF(E3=0,'Årsberetning - små'!H13,\" \")","v":0}]
[{"$f":"'Årsberetning - små'!A14","v":3},{"$f":"IF('Årsberetning - små'!E14<>\"\",1,0)","v":0},{"$f":"IF('Årsberetning - små'!F14<>\"\",1,0)","v":0},{"$f":"IF('Årsberetning - små'!G14<>\"\",1,0)","v":0},0,{"$f":"IF($E4=0,'Årsberetning - små'!A14,\"\")","v":3},{"$f":"IF($E4=0,'Årsberetning - små'!B14,\"\")","v":"Er oversikten en balansert og fyllestgjørende analyse av utvikling, resultat og stilling?"},null,null,{"$f":"IF(E4=0,'Årsberetning - små'!H14,\" \")","v":0}]
[{"$f":"'Årsberetning - små'!A15","v":4},{"$f":"IF('Årsberetning - små'!E15<>\"\",1,0)","v":0},{"$f":"IF('Årsberetning - små'!F15<>\"\",1,0)","v":0},{"$f":"IF('Årsberetning - små'!G15<>\"\",1,0)","v":0},0,{"$f":"IF($E5=0,'Årsberetning - små'!A15,\"\")","v":4},{"$f":"IF($E5=0,'Årsberetning - små'!B15,\"\")","v":"Er det gitt opplysninger om eventuelle forsknings- og utviklingsaktiviteter?"},null,null,{"$f":"IF(E5=0,'Årsberetning - små'!H15,\" \")","v":0}]
[{"$f":"'Årsberetning - små'!A18","v":5},{"$f":"IF('Årsberetning - små'!E18<>\"\",1,0)","v":0},{"$f":"IF('Årsberetning - små'!F18<>\"\",1,0)","v":0},{"$f":"IF('Årsberetning - små'!G18<>\"\",1,0)","v":0},0,{"$f":"IF($E6=0,'Årsberetning - små'!A18,\"\")","v":5},{"$f":"IF($E6=0,'Årsberetning - små'!B18,\"\")","v":"Er det gitt er redegjørelse som gir grunnlag for å vurdere foretakets framtidige utvikling?"},null,null,{"$f":"IF(E6=0,'Årsberetning - små'!H18,\" \")","v":0}]
[{"$f":"'Årsberetning - små'!A19","v":6},{"$f":"IF('Årsberetning - små'!E19<>\"\",1,0)","v":0},{"$f":"IF('Årsberetning - små'!F19<>\"\",1,0)","v":0},{"$f":"IF('Årsberetning - små'!G19<>\"\",1,0)","v":0},0,{"$f":"IF($E7=0,'Årsberetning - små'!A19,\"\")","v":6},{"$f":"IF($E7=0,'Årsberetning - små'!B19,\"\")","v":"Dersom det i tidligere beretninger er gitt opplysninger om fremtidig utvikling, er det informert om årets resultat er i samsvar med forventningen, og er eventuelle avvik begrunnet? "},null,null,{"$f":"IF(E7=0,'Årsberetning - små'!H19,\" \")","v":0}]
[{"$f":"'Årsberetning - små'!A22","v":7},{"$f":"IF('Årsberetning - små'!E22<>\"\",1,0)","v":0},{"$f":"IF('Årsberetning - små'!F22<>\"\",1,0)","v":0},{"$f":"IF('Årsberetning - små'!G22<>\"\",1,0)","v":0},0,{"$f":"IF($E8=0,'Årsberetning - små'!A22,\"\")","v":7},{"$f":"IF($E8=0,'Årsberetning - små'!B22,\"\")","v":"Utvilsom fortsatt drift: Er det bekreftet at forutsetningen for fortsatt drift er til stede? "},null,null,{"$f":"IF(E8=0,'Årsberetning - små'!H22,\" \")","v":0}]
[{"$f":"'Årsberetning - små'!A23","v":8},{"$f":"IF('Årsberetning - små'!E23<>\"\",1,0)","v":0},{"$f":"IF('Årsberetning - små'!F23<>\"\",1,0)","v":0},{"$f":"IF('Årsberetning - små'!G23<>\"\",1,0)","v":0},0,{"$f":"IF($E9=0,'Årsberetning - små'!A23,\"\")","v":8},{"$f":"IF($E9=0,'Årsberetning - små'!B23,\"\")","v":"Usikker fortsatt drift: er det redegjort for usikkerheten om fortsatt drift? "},null,null,{"$f":"IF(E9=0,'Årsberetning - små'!H23,\" \")","v":0}]
[{"$f":"'Årsberetning - små'!A24","v":9},{"$f":"IF('Årsberetning - små'!E24<>\"\",1,0)","v":0},{"$f":"IF('Årsberetning - små'!F24<>\"\",1,0)","v":0},{"$f":"IF('Årsberetning - små'!G24<>\"\",1,0)","v":0},0,{"$f":"IF($E10=0,'Årsberetning - små'!A24,\"\")","v":9},{"$f":"IF($E10=0,'Årsberetning - små'!B24,\"\")","v":"Ved stor usikkerhet og tvil om fortsatt drift, er det opplyst om større poster i årsregnskapet som vil påvirkes dersom forutsetningen om fortsatt drift ikke legges til grunn for vurderingene?"},null,null,{"$f":"IF(E10=0,'Årsberetning - små'!H24,\" \")","v":0}]
[{"$f":"'Årsberetning - små'!A25","v":10},{"$f":"IF('Årsberetning - små'!E25<>\"\",1,0)","v":0},{"$f":"IF('Årsberetning - små'!F25<>\"\",1,0)","v":0},{"$f":"IF('Årsberetning - små'!G25<>\"\",1,0)","v":0},0,{"$f":"IF($E11=0,'Årsberetning - små'!A25,\"\")","v":10},{"$f":"IF($E11=0,'Årsberetning - små'!B25,\"\")","v":"Er virkningene, dersom det er mulig, kvantifisert?"},null,null,{"$f":"IF(E11=0,'Årsberetning - små'!H25,\" \")","v":0}]
[{"$f":"'Årsberetning - små'!A26","v":11},{"$f":"IF('Årsberetning - små'!E26<>\"\",1,0)","v":0},{"$f":"IF('Årsberetning - små'!F26<>\"\",1,0)","v":0},{"$f":"IF('Årsberetning - små'!G26<>\"\",1,0)","v":0},0,{"$f":"IF($E12=0,'Årsberetning - små'!A26,\"\")","v":11},{"$f":"IF($E12=0,'Årsberetning - små'!B26,\"\")","v":"Sannsynlig avvikling: Er det redegjort for hvordan virkelig verdi ved avvikling er beregnet dersom dette ikke fremgår i note til årsregnskapet? "},null,null,{"$f":"IF(E12=0,'Årsberetning - små'!H26,\" \")","v":0}]
[{"$f":"'Årsberetning - små'!A27","v":12},{"$f":"IF('Årsberetning - små'!E27<>\"\",1,0)","v":0},{"$f":"IF('Årsberetning - små'!F27<>\"\",1,0)","v":0},{"$f":"IF('Årsberetning - små'!G27<>\"\",1,0)","v":0},0,{"$f":"IF($E13=0,'Årsberetning - små'!A27,\"\")","v":12},{"$f":"IF($E13=0,'Årsberetning - små'!B27,\"\")","v":"Dersom styrets handleplikt etter asl/asal § 3-5 er inntrådt, er det opplyst om det er besluttet eller satt i verk tiltak for å sikre selskapets drift, eventuelt å oppløse selskapet?"},null,null,{"$f":"IF(E13=0,'Årsberetning - små'!H27,\" \")","v":0}]
[{"$f":"'Årsberetning - små'!A30","v":13},{"$f":"IF('Årsberetning - små'!E30<>\"\",1,0)","v":0},{"$f":"IF('Årsberetning - små'!F30<>\"\",1,0)","v":0},{"$f":"IF('Årsberetning - små'!G30<>\"\",1,0)","v":0},0,{"$f":"IF($E14=0,'Årsberetning - små'!A30,\"\")","v":13},{"$f":"IF($E14=0,'Årsberetning - små'!B30,\"\")","v":"Dersom resultatregnskapet, noter eller evt. oppstilling av endring i egenkapitalen ikke inneholder forslag til anvendelse av overskudd eller dekning av tap, fremgår forslaget av årsberetningen? "},null,null,{"$f":"IF(E14=0,'Årsberetning - små'!H30,\" \")","v":0}]
[{"$f":"'Årsberetning - små'!A33","v":14},{"$f":"IF('Årsberetning - små'!E33<>\"\",1,0)","v":0},{"$f":"IF('Årsberetning - små'!F33<>\"\",1,0)","v":0},{"$f":"IF('Årsberetning - små'!G33<>\"\",1,0)","v":0},0,{"$f":"IF($E15=0,'Årsberetning - små'!A33,\"\")","v":14},{"$f":"IF($E15=0,'Årsberetning - små'!B33,\"\")","v":"Er det gitt opplysninger om arbeidsmiljøet? "},null,null,{"$f":"IF(E15=0,'Årsberetning - små'!H33,\" \")","v":0}]
[{"$f":"'Årsberetning - små'!A34","v":15},{"$f":"IF('Årsberetning - små'!E34<>\"\",1,0)","v":0},{"$f":"IF('Årsberetning - små'!F34<>\"\",1,0)","v":0},{"$f":"IF('Årsberetning - små'!G34<>\"\",1,0)","v":0},0,{"$f":"IF($E16=0,'Årsberetning - små'!A34,\"\")","v":15},{"$f":"IF($E16=0,'Årsberetning - små'!B34,\"\")","v":"Er det gitt en oversikt over eventuelle iverksatte tiltak som har betydning for arbeidsmiljøet? "},null,null,{"$f":"IF(E16=0,'Årsberetning - små'!H34,\" \")","v":0}]
[{"$f":"'Årsberetning - små'!A35","v":16},{"$f":"IF('Årsberetning - små'!E35<>\"\",1,0)","v":0},{"$f":"IF('Årsberetning - små'!F35<>\"\",1,0)","v":0},{"$f":"IF('Årsberetning - små'!G35<>\"\",1,0)","v":0},0,{"$f":"IF($E17=0,'Årsberetning - små'!A35,\"\")","v":16},{"$f":"IF($E17=0,'Årsberetning - små'!B35,\"\")","v":"Er det opplyst om eventuelle skader, herunder både personskader og materielle skader?  "},null,null,{"$f":"IF(E17=0,'Årsberetning - små'!H35,\" \")","v":0}]
[{"$f":"'Årsberetning - små'!A36","v":17},{"$f":"IF('Årsberetning - små'!E36<>\"\",1,0)","v":0},{"$f":"IF('Årsberetning - små'!F36<>\"\",1,0)","v":0},{"$f":"IF('Årsberetning - små'!G36<>\"\",1,0)","v":0},0,{"$f":"IF($E18=0,'Årsberetning - små'!A36,\"\")","v":17},{"$f":"IF($E18=0,'Årsberetning - små'!B36,\"\")","v":"Er det opplyst om skader som gjelder både ulykker og andre skader, for eksempel slitasje- og belastningsskader?  "},null,null,{"$f":"IF(E18=0,'Årsberetning - små'!H36,\" \")","v":0}]
[{"$f":"'Årsberetning - små'!A37","v":18},{"$f":"IF('Årsberetning - små'!E37<>\"\",1,0)","v":0},{"$f":"IF('Årsberetning - små'!F37<>\"\",1,0)","v":0},{"$f":"IF('Årsberetning - små'!G37<>\"\",1,0)","v":0},0,{"$f":"IF($E19=0,'Årsberetning - små'!A37,\"\")","v":18},{"$f":"IF($E19=0,'Årsberetning - små'!B37,\"\")","v":"Er det opplyst om eventuelle ulykker, herunder både personskader og materielle skader?  "},null,null,{"$f":"IF(E19=0,'Årsberetning - små'!H37,\" \")","v":0}]
[{"$f":"'Årsberetning - små'!A38","v":19},{"$f":"IF('Årsberetning - små'!E38<>\"\",1,0)","v":0},{"$f":"IF('Årsberetning - små'!F38<>\"\",1,0)","v":0},{"$f":"IF('Årsberetning - små'!G38<>\"\",1,0)","v":0},0,{"$f":"IF($E20=0,'Årsberetning - små'!A38,\"\")","v":19},{"$f":"IF($E20=0,'Årsberetning - små'!B38,\"\")","v":"Dersom foretaket har minst 5 årsverk, er det opplyst om sykefravær?"},null,null,{"$f":"IF(E20=0,'Årsberetning - små'!H38,\" \")","v":0}]
[{"$f":"'Årsberetning - små'!A39","v":20},{"$f":"IF('Årsberetning - små'!E39<>\"\",1,0)","v":0},{"$f":"IF('Årsberetning - små'!F39<>\"\",1,0)","v":0},{"$f":"IF('Årsberetning - små'!G39<>\"\",1,0)","v":0},0,{"$f":"IF($E21=0,'Årsberetning - små'!A39,\"\")","v":20},{"$f":"IF($E21=0,'Årsberetning - små'!B39,\"\")","v":"Dersom foretaket ikke har ansatte, og således ikke noe arbeidsmiljø, er dette opplyst?"},null,null,{"$f":"IF(E21=0,'Årsberetning - små'!H39,\" \")","v":0}]
[{"$f":"'Årsberetning - små'!A45","v":21},{"$f":"IF('Årsberetning - små'!E45<>\"\",1,0)","v":0},{"$f":"IF('Årsberetning - små'!F45<>\"\",1,0)","v":0},{"$f":"IF('Årsberetning - små'!G45<>\"\",1,0)","v":0},0,{"$f":"IF($E22=0,'Årsberetning - små'!A45,\"\")","v":21},{"$f":"IF($E22=0,'Årsberetning - små'!B45,\"\")","v":"Er det redegjort for den faktiske tilstanden når det gjelder kjønnslikestilling i virksomheten? "},null,null,{"$f":"IF(E22=0,'Årsberetning - små'!H45,\" \")","v":0}]
[{"$f":"'Årsberetning - små'!A46","v":22},{"$f":"IF('Årsberetning - små'!E46<>\"\",1,0)","v":0},{"$f":"IF('Årsberetning - små'!F46<>\"\",1,0)","v":0},{"$f":"IF('Årsberetning - små'!G46<>\"\",1,0)","v":0},0,{"$f":"IF($E23=0,'Årsberetning - små'!A46,\"\")","v":22},{"$f":"IF($E23=0,'Årsberetning - små'!B46,\"\")","v":"Er det redegjort for hva foretaket gjør for å oppfylle aktivitetsplikten etter likestillings- og diskrimineringsloven § 26?"},null,null,{"$f":"IF(E23=0,'Årsberetning - små'!H46,\" \")","v":0}]
[{"$f":"'Årsberetning - små'!A47","v":23},{"$f":"IF('Årsberetning - små'!E47<>\"\",1,0)","v":0},{"$f":"IF('Årsberetning - små'!F47<>\"\",1,0)","v":0},{"$f":"IF('Årsberetning - små'!G47<>\"\",1,0)","v":0},0,{"$f":"IF($E24=0,'Årsberetning - små'!A47,\"\")","v":23},{"$f":"IF($E24=0,'Årsberetning - små'!B47,\"\")","v":"Er redegjørelsen utformet slik at enkeltansattes personlige forhold ikke røpes?"},null,null,{"$f":"IF(E24=0,'Årsberetning - små'!H47,\" \")","v":0}]
[{"$f":"'Årsberetning - små'!A48","v":24},{"$f":"IF('Årsberetning - små'!E48<>\"\",1,0)","v":0},{"$f":"IF('Årsberetning - små'!F48<>\"\",1,0)","v":0},{"$f":"IF('Årsberetning - små'!G48<>\"\",1,0)","v":0},0,{"$f":"IF($E25=0,'Årsberetning - små'!A48,\"\")","v":24},{"$f":"IF($E25=0,'Årsberetning - små'!B48,\"\")","v":"Fremgår resultatene av lønnskartleggingen av redegjørelsen i anonymisert form?"},null,null,{"$f":"IF(E25=0,'Årsberetning - små'!H48,\" \")","v":0}]
[{"$f":"'Årsberetning - små'!A51","v":25},{"$f":"IF('Årsberetning - små'!E51<>\"\",1,0)","v":0},{"$f":"IF('Årsberetning - små'!F51<>\"\",1,0)","v":0},{"$f":"IF('Årsberetning - små'!G51<>\"\",1,0)","v":0},{"$f":"SUM(B26:D26)","v":0},{"$f":"IF($E26=0,'Årsberetning - små'!A51,\"\")","v":25},{"$f":"IF($E26=0,'Årsberetning - små'!B51,\"\")","v":"Dersom selskapet er pliktig til å avgi redegjørelse etter åpenhetsloven, er det opplyst i årsberetningen om hvor redegjørelsen er tilgjengelig?"},null,null,{"$f":"IF(E26=0,'Årsberetning - små'!H51,\" \")","v":0}]

{"sheet":"Å Ja","index":7,"n_rows":26,"n_cols":7,"rows_kept":26,"cut":false,"hidden":true,"merged":[]}
[null,null,{"$f":"COUNTIF(B2:B454,\"=1\")","v":0},"Svart Ja",{"$f":"'Årsberetning - små'!B2","v":0},{"$f":"'Årsberetning - små'!B3","v":2023},"Kommentarer"]
[{"$f":"'Årsberetning - små'!A12","v":1},{"$f":"IF('Årsberetning - små'!E12<>\"\",1,0)","v":0},{"$f":"SUM(B2:B2)","v":0},{"$f":"IF($B2=1,'Årsberetning - små'!A12,\"\")","v":""},{"$f":"IF($B2=1,'Årsberetning - små'!B12,\"\")","v":""},null,{"$f":"IF(C2=1,'Årsberetning - små'!H12,\" \")","v":" "}]
[{"$f":"'Årsberetning - små'!A13","v":2},{"$f":"IF('Årsberetning - små'!E13<>\"\",1,0)","v":0},0,{"$f":"IF($B3=1,'Årsberetning - små'!A13,\"\")","v":""},{"$f":"IF($B3=1,'Årsberetning - små'!B13,\"\")","v":""},null,{"$f":"IF(C3=1,'Årsberetning - små'!H13,\" \")","v":" "}]
[{"$f":"'Årsberetning - små'!A14","v":3},{"$f":"IF('Årsberetning - små'!E14<>\"\",1,0)","v":0},0,{"$f":"IF($B4=1,'Årsberetning - små'!A14,\"\")","v":""},{"$f":"IF($B4=1,'Årsberetning - små'!B14,\"\")","v":""},null,{"$f":"IF(C4=1,'Årsberetning - små'!H14,\" \")","v":" "}]
[{"$f":"'Årsberetning - små'!A15","v":4},{"$f":"IF('Årsberetning - små'!E15<>\"\",1,0)","v":0},0,{"$f":"IF($B5=1,'Årsberetning - små'!A15,\"\")","v":""},{"$f":"IF($B5=1,'Årsberetning - små'!B15,\"\")","v":""},null,{"$f":"IF(C5=1,'Årsberetning - små'!H15,\" \")","v":" "}]
[{"$f":"'Årsberetning - små'!A18","v":5},{"$f":"IF('Årsberetning - små'!E18<>\"\",1,0)","v":0},0,{"$f":"IF($B6=1,'Årsberetning - små'!A18,\"\")","v":""},{"$f":"IF($B6=1,'Årsberetning - små'!B18,\"\")","v":""},null,{"$f":"IF(C6=1,'Årsberetning - små'!H18,\" \")","v":" "}]
[{"$f":"'Årsberetning - små'!A19","v":6},{"$f":"IF('Årsberetning - små'!E19<>\"\",1,0)","v":0},0,{"$f":"IF($B7=1,'Årsberetning - små'!A19,\"\")","v":""},{"$f":"IF($B7=1,'Årsberetning - små'!B19,\"\")","v":""},null,{"$f":"IF(C7=1,'Årsberetning - små'!H19,\" \")","v":" "}]
[{"$f":"'Årsberetning - små'!A22","v":7},{"$f":"IF('Årsberetning - små'!E22<>\"\",1,0)","v":0},0,{"$f":"IF($B8=1,'Årsberetning - små'!A22,\"\")","v":""},{"$f":"IF($B8=1,'Årsberetning - små'!B22,\"\")","v":""},null,{"$f":"IF(C8=1,'Årsberetning - små'!H22,\" \")","v":" "}]
[{"$f":"'Årsberetning - små'!A23","v":8},{"$f":"IF('Årsberetning - små'!E23<>\"\",1,0)","v":0},0,{"$f":"IF($B9=1,'Årsberetning - små'!A23,\"\")","v":""},{"$f":"IF($B9=1,'Årsberetning - små'!B23,\"\")","v":""},null,{"$f":"IF(C9=1,'Årsberetning - små'!H23,\" \")","v":" "}]
[{"$f":"'Årsberetning - små'!A24","v":9},{"$f":"IF('Årsberetning - små'!E24<>\"\",1,0)","v":0},0,{"$f":"IF($B10=1,'Årsberetning - små'!A24,\"\")","v":""},{"$f":"IF($B10=1,'Årsberetning - små'!B24,\"\")","v":""},null,{"$f":"IF(C10=1,'Årsberetning - små'!H24,\" \")","v":" "}]
[{"$f":"'Årsberetning - små'!A25","v":10},{"$f":"IF('Årsberetning - små'!E25<>\"\",1,0)","v":0},0,{"$f":"IF($B11=1,'Årsberetning - små'!A25,\"\")","v":""},{"$f":"IF($B11=1,'Årsberetning - små'!B25,\"\")","v":""},null,{"$f":"IF(C11=1,'Årsberetning - små'!H25,\" \")","v":" "}]
[{"$f":"'Årsberetning - små'!A26","v":11},{"$f":"IF('Årsberetning - små'!E26<>\"\",1,0)","v":0},0,{"$f":"IF($B12=1,'Årsberetning - små'!A26,\"\")","v":""},{"$f":"IF($B12=1,'Årsberetning - små'!B26,\"\")","v":""},null,{"$f":"IF(C12=1,'Årsberetning - små'!H26,\" \")","v":" "}]
[{"$f":"'Årsberetning - små'!A27","v":12},{"$f":"IF('Årsberetning - små'!E27<>\"\",1,0)","v":0},0,{"$f":"IF($B13=1,'Årsberetning - små'!A27,\"\")","v":""},{"$f":"IF($B13=1,'Årsberetning - små'!B27,\"\")","v":""},null,{"$f":"IF(C13=1,'Årsberetning - små'!H27,\" \")","v":" "}]
[{"$f":"'Årsberetning - små'!A30","v":13},{"$f":"IF('Årsberetning - små'!E30<>\"\",1,0)","v":0},0,{"$f":"IF($B14=1,'Årsberetning - små'!A30,\"\")","v":""},{"$f":"IF($B14=1,'Årsberetning - små'!B30,\"\")","v":""},null,{"$f":"IF(C14=1,'Årsberetning - små'!H30,\" \")","v":" "}]
[{"$f":"'Årsberetning - små'!A33","v":14},{"$f":"IF('Årsberetning - små'!E33<>\"\",1,0)","v":0},0,{"$f":"IF($B15=1,'Årsberetning - små'!A33,\"\")","v":""},{"$f":"IF($B15=1,'Årsberetning - små'!B33,\"\")","v":""},null,{"$f":"IF(C15=1,'Årsberetning - små'!H33,\" \")","v":" "}]
[{"$f":"'Årsberetning - små'!A34","v":15},{"$f":"IF('Årsberetning - små'!E34<>\"\",1,0)","v":0},0,{"$f":"IF($B16=1,'Årsberetning - små'!A34,\"\")","v":""},{"$f":"IF($B16=1,'Årsberetning - små'!B34,\"\")","v":""},null,{"$f":"IF(C16=1,'Årsberetning - små'!H34,\" \")","v":" "}]
[{"$f":"'Årsberetning - små'!A35","v":16},{"$f":"IF('Årsberetning - små'!E35<>\"\",1,0)","v":0},0,{"$f":"IF($B17=1,'Årsberetning - små'!A35,\"\")","v":""},{"$f":"IF($B17=1,'Årsberetning - små'!B35,\"\")","v":""},null,{"$f":"IF(C17=1,'Årsberetning - små'!H35,\" \")","v":" "}]
[{"$f":"'Årsberetning - små'!A36","v":17},{"$f":"IF('Årsberetning - små'!E36<>\"\",1,0)","v":0},0,{"$f":"IF($B18=1,'Årsberetning - små'!A36,\"\")","v":""},{"$f":"IF($B18=1,'Årsberetning - små'!B36,\"\")","v":""},null,{"$f":"IF(C18=1,'Årsberetning - små'!H36,\" \")","v":" "}]
[{"$f":"'Årsberetning - små'!A37","v":18},{"$f":"IF('Årsberetning - små'!E37<>\"\",1,0)","v":0},0,{"$f":"IF($B19=1,'Årsberetning - små'!A37,\"\")","v":""},{"$f":"IF($B19=1,'Årsberetning - små'!B37,\"\")","v":""},null,{"$f":"IF(C19=1,'Årsberetning - små'!H37,\" \")","v":" "}]
[{"$f":"'Årsberetning - små'!A38","v":19},{"$f":"IF('Årsberetning - små'!E38<>\"\",1,0)","v":0},0,{"$f":"IF($B20=1,'Årsberetning - små'!A38,\"\")","v":""},{"$f":"IF($B20=1,'Årsberetning - små'!B38,\"\")","v":""},null,{"$f":"IF(C20=1,'Årsberetning - små'!H38,\" \")","v":" "}]
[{"$f":"'Årsberetning - små'!A39","v":20},{"$f":"IF('Årsberetning - små'!E39<>\"\",1,0)","v":0},0,{"$f":"IF($B21=1,'Årsberetning - små'!A39,\"\")","v":""},{"$f":"IF($B21=1,'Årsberetning - små'!B39,\"\")","v":""},null,{"$f":"IF(C21=1,'Årsberetning - små'!H39,\" \")","v":" "}]
[{"$f":"'Årsberetning - små'!A45","v":21},{"$f":"IF('Årsberetning - små'!E45<>\"\",1,0)","v":0},0,{"$f":"IF($B22=1,'Årsberetning - små'!A45,\"\")","v":""},{"$f":"IF($B22=1,'Årsberetning - små'!B45,\"\")","v":""},null,{"$f":"IF(C22=1,'Årsberetning - små'!H45,\" \")","v":" "}]
[{"$f":"'Årsberetning - små'!A46","v":22},{"$f":"IF('Årsberetning - små'!E46<>\"\",1,0)","v":0},0,{"$f":"IF($B23=1,'Årsberetning - små'!A46,\"\")","v":""},{"$f":"IF($B23=1,'Årsberetning - små'!B46,\"\")","v":""},null,{"$f":"IF(C23=1,'Årsberetning - små'!H46,\" \")","v":" "}]
[{"$f":"'Årsberetning - små'!A47","v":23},{"$f":"IF('Årsberetning - små'!E47<>\"\",1,0)","v":0},0,{"$f":"IF($B24=1,'Årsberetning - små'!A47,\"\")","v":""},{"$f":"IF($B24=1,'Årsberetning - små'!B47,\"\")","v":""},null,{"$f":"IF(C24=1,'Årsberetning - små'!H47,\" \")","v":" "}]
[{"$f":"'Årsberetning - små'!A48","v":24},{"$f":"IF('Årsberetning - små'!E48<>\"\",1,0)","v":0},0,{"$f":"IF($B25=1,'Årsberetning - små'!A48,\"\")","v":""},{"$f":"IF($B25=1,'Årsberetning - små'!B48,\"\")","v":""},null,{"$f":"IF(C25=1,'Årsberetning - små'!H48,\" \")","v":" "}]
[{"$f":"'Årsberetning - små'!A51","v":25},{"$f":"IF('Årsberetning - små'!E51<>\"\",1,0)","v":0},0,{"$f":"IF($B26=1,'Årsberetning - små'!A51,\"\")","v":""},{"$f":"IF($B26=1,'Årsberetning - små'!B51,\"\")","v":""},null,{"$f":"IF(C26=1,'Årsberetning - små'!H51,\" \")","v":" "}]

{"sheet":"Å Nei","index":8,"n_rows":26,"n_cols":7,"rows_kept":26,"cut":false,"hidden":true,"merged":[]}
[null,null,{"$f":"COUNTIF(B2:B478,\"=1\")","v":0},"Svart Nei",{"$f":"'Årsberetning - små'!B2","v":0},{"$f":"'Årsberetning - små'!B3","v":2023},"Kommentarer"]
[{"$f":"'Årsberetning - små'!A12","v":1},{"$f":"IF('Årsberetning - små'!F12<>\"\",1,0)","v":0},{"$f":"SUM(B2:B2)","v":0},{"$f":"IF($B2=1,'Årsberetning - små'!A12,\"\")","v":""},{"$f":"IF($B2=1,'Årsberetning - små'!B12,\"\")","v":""},null,{"$f":"IF(C2=1,'Årsberetning - små'!H12,\" \")","v":" "}]
[{"$f":"'Årsberetning - små'!A13","v":2},{"$f":"IF('Årsberetning - små'!F13<>\"\",1,0)","v":0},0,{"$f":"IF($B3=1,'Årsberetning - små'!A13,\"\")","v":""},{"$f":"IF($B3=1,'Årsberetning - små'!B13,\"\")","v":""},null,{"$f":"IF(C3=1,'Årsberetning - små'!H13,\" \")","v":" "}]
[{"$f":"'Årsberetning - små'!A14","v":3},{"$f":"IF('Årsberetning - små'!F14<>\"\",1,0)","v":0},0,{"$f":"IF($B4=1,'Årsberetning - små'!A14,\"\")","v":""},{"$f":"IF($B4=1,'Årsberetning - små'!B14,\"\")","v":""},null,{"$f":"IF(C4=1,'Årsberetning - små'!H14,\" \")","v":" "}]
[{"$f":"'Årsberetning - små'!A15","v":4},{"$f":"IF('Årsberetning - små'!F15<>\"\",1,0)","v":0},0,{"$f":"IF($B5=1,'Årsberetning - små'!A15,\"\")","v":""},{"$f":"IF($B5=1,'Årsberetning - små'!B15,\"\")","v":""},null,{"$f":"IF(C5=1,'Årsberetning - små'!H15,\" \")","v":" "}]
[{"$f":"'Årsberetning - små'!A18","v":5},{"$f":"IF('Årsberetning - små'!F18<>\"\",1,0)","v":0},0,{"$f":"IF($B6=1,'Årsberetning - små'!A18,\"\")","v":""},{"$f":"IF($B6=1,'Årsberetning - små'!B18,\"\")","v":""},null,{"$f":"IF(C6=1,'Årsberetning - små'!H18,\" \")","v":" "}]
[{"$f":"'Årsberetning - små'!A19","v":6},{"$f":"IF('Årsberetning - små'!F19<>\"\",1,0)","v":0},0,{"$f":"IF($B7=1,'Årsberetning - små'!A19,\"\")","v":""},{"$f":"IF($B7=1,'Årsberetning - små'!B19,\"\")","v":""},null,{"$f":"IF(C7=1,'Årsberetning - små'!H19,\" \")","v":" "}]
[{"$f":"'Årsberetning - små'!A22","v":7},{"$f":"IF('Årsberetning - små'!F22<>\"\",1,0)","v":0},0,{"$f":"IF($B8=1,'Årsberetning - små'!A22,\"\")","v":""},{"$f":"IF($B8=1,'Årsberetning - små'!B22,\"\")","v":""},null,{"$f":"IF(C8=1,'Årsberetning - små'!H22,\" \")","v":" "}]
[{"$f":"'Årsberetning - små'!A23","v":8},{"$f":"IF('Årsberetning - små'!F23<>\"\",1,0)","v":0},0,{"$f":"IF($B9=1,'Årsberetning - små'!A23,\"\")","v":""},{"$f":"IF($B9=1,'Årsberetning - små'!B23,\"\")","v":""},null,{"$f":"IF(C9=1,'Årsberetning - små'!H23,\" \")","v":" "}]
[{"$f":"'Årsberetning - små'!A24","v":9},{"$f":"IF('Årsberetning - små'!F24<>\"\",1,0)","v":0},0,{"$f":"IF($B10=1,'Årsberetning - små'!A24,\"\")","v":""},{"$f":"IF($B10=1,'Årsberetning - små'!B24,\"\")","v":""},null,{"$f":"IF(C10=1,'Årsberetning - små'!H24,\" \")","v":" "}]
[{"$f":"'Årsberetning - små'!A25","v":10},{"$f":"IF('Årsberetning - små'!F25<>\"\",1,0)","v":0},0,{"$f":"IF($B11=1,'Årsberetning - små'!A25,\"\")","v":""},{"$f":"IF($B11=1,'Årsberetning - små'!B25,\"\")","v":""},null,{"$f":"IF(C11=1,'Årsberetning - små'!H25,\" \")","v":" "}]
[{"$f":"'Årsberetning - små'!A26","v":11},{"$f":"IF('Årsberetning - små'!F26<>\"\",1,0)","v":0},0,{"$f":"IF($B12=1,'Årsberetning - små'!A26,\"\")","v":""},{"$f":"IF($B12=1,'Årsberetning - små'!B26,\"\")","v":""},null,{"$f":"IF(C12=1,'Årsberetning - små'!H26,\" \")","v":" "}]
[{"$f":"'Årsberetning - små'!A27","v":12},{"$f":"IF('Årsberetning - små'!F27<>\"\",1,0)","v":0},0,{"$f":"IF($B13=1,'Årsberetning - små'!A27,\"\")","v":""},{"$f":"IF($B13=1,'Årsberetning - små'!B27,\"\")","v":""},null,{"$f":"IF(C13=1,'Årsberetning - små'!H27,\" \")","v":" "}]
[{"$f":"'Årsberetning - små'!A30","v":13},{"$f":"IF('Årsberetning - små'!F30<>\"\",1,0)","v":0},0,{"$f":"IF($B14=1,'Årsberetning - små'!A30,\"\")","v":""},{"$f":"IF($B14=1,'Årsberetning - små'!B30,\"\")","v":""},null,{"$f":"IF(C14=1,'Årsberetning - små'!H30,\" \")","v":" "}]
[{"$f":"'Årsberetning - små'!A33","v":14},{"$f":"IF('Årsberetning - små'!F33<>\"\",1,0)","v":0},0,{"$f":"IF($B15=1,'Årsberetning - små'!A33,\"\")","v":""},{"$f":"IF($B15=1,'Årsberetning - små'!B33,\"\")","v":""},null,{"$f":"IF(C15=1,'Årsberetning - små'!H33,\" \")","v":" "}]
[{"$f":"'Årsberetning - små'!A34","v":15},{"$f":"IF('Årsberetning - små'!F34<>\"\",1,0)","v":0},0,{"$f":"IF($B16=1,'Årsberetning - små'!A34,\"\")","v":""},{"$f":"IF($B16=1,'Årsberetning - små'!B34,\"\")","v":""},null,{"$f":"IF(C16=1,'Årsberetning - små'!H34,\" \")","v":" "}]
[{"$f":"'Årsberetning - små'!A35","v":16},{"$f":"IF('Årsberetning - små'!F35<>\"\",1,0)","v":0},0,{"$f":"IF($B17=1,'Årsberetning - små'!A35,\"\")","v":""},{"$f":"IF($B17=1,'Årsberetning - små'!B35,\"\")","v":""},null,{"$f":"IF(C17=1,'Årsberetning - små'!H35,\" \")","v":" "}]
[{"$f":"'Årsberetning - små'!A36","v":17},{"$f":"IF('Årsberetning - små'!F36<>\"\",1,0)","v":0},0,{"$f":"IF($B18=1,'Årsberetning - små'!A36,\"\")","v":""},{"$f":"IF($B18=1,'Årsberetning - små'!B36,\"\")","v":""},null,{"$f":"IF(C18=1,'Årsberetning - små'!H36,\" \")","v":" "}]
[{"$f":"'Årsberetning - små'!A37","v":18},{"$f":"IF('Årsberetning - små'!F37<>\"\",1,0)","v":0},0,{"$f":"IF($B19=1,'Årsberetning - små'!A37,\"\")","v":""},{"$f":"IF($B19=1,'Årsberetning - små'!B37,\"\")","v":""},null,{"$f":"IF(C19=1,'Årsberetning - små'!H37,\" \")","v":" "}]
[{"$f":"'Årsberetning - små'!A38","v":19},{"$f":"IF('Årsberetning - små'!F38<>\"\",1,0)","v":0},0,{"$f":"IF($B20=1,'Årsberetning - små'!A38,\"\")","v":""},{"$f":"IF($B20=1,'Årsberetning - små'!B38,\"\")","v":""},null,{"$f":"IF(C20=1,'Årsberetning - små'!H38,\" \")","v":" "}]
[{"$f":"'Årsberetning - små'!A39","v":20},{"$f":"IF('Årsberetning - små'!F39<>\"\",1,0)","v":0},0,{"$f":"IF($B21=1,'Årsberetning - små'!A39,\"\")","v":""},{"$f":"IF($B21=1,'Årsberetning - små'!B39,\"\")","v":""},null,{"$f":"IF(C21=1,'Årsberetning - små'!H39,\" \")","v":" "}]
[{"$f":"'Årsberetning - små'!A45","v":21},{"$f":"IF('Årsberetning - små'!F45<>\"\",1,0)","v":0},0,{"$f":"IF($B22=1,'Årsberetning - små'!A45,\"\")","v":""},{"$f":"IF($B22=1,'Årsberetning - små'!B45,\"\")","v":""},null,{"$f":"IF(C22=1,'Årsberetning - små'!H45,\" \")","v":" "}]
[{"$f":"'Årsberetning - små'!A46","v":22},{"$f":"IF('Årsberetning - små'!F46<>\"\",1,0)","v":0},0,{"$f":"IF($B23=1,'Årsberetning - små'!A46,\"\")","v":""},{"$f":"IF($B23=1,'Årsberetning - små'!B46,\"\")","v":""},null,{"$f":"IF(C23=1,'Årsberetning - små'!H46,\" \")","v":" "}]
[{"$f":"'Årsberetning - små'!A47","v":23},{"$f":"IF('Årsberetning - små'!F47<>\"\",1,0)","v":0},0,{"$f":"IF($B24=1,'Årsberetning - små'!A47,\"\")","v":""},{"$f":"IF($B24=1,'Årsberetning - små'!B47,\"\")","v":""},null,{"$f":"IF(C24=1,'Årsberetning - små'!H47,\" \")","v":" "}]
[{"$f":"'Årsberetning - små'!A48","v":24},{"$f":"IF('Årsberetning - små'!F48<>\"\",1,0)","v":0},0,{"$f":"IF($B25=1,'Årsberetning - små'!A48,\"\")","v":""},{"$f":"IF($B25=1,'Årsberetning - små'!B48,\"\")","v":""},null,{"$f":"IF(C25=1,'Årsberetning - små'!H48,\" \")","v":" "}]
[{"$f":"'Årsberetning - små'!A51","v":25},{"$f":"IF('Årsberetning - små'!F51<>\"\",1,0)","v":0},{"$f":"SUM(B26:B26)","v":0},{"$f":"IF($B26=1,'Årsberetning - små'!A51,\"\")","v":""},{"$f":"IF($B26=1,'Årsberetning - små'!B51,\"\")","v":""},null,{"$f":"IF(C26=1,'Årsberetning - små'!H51,\" \")","v":" "}]

{"sheet":"Å IA","index":9,"n_rows":26,"n_cols":7,"rows_kept":26,"cut":false,"hidden":true,"merged":[]}
[null,null,{"$f":"COUNTIF(B2:B427,\"=1\")","v":0},"Svart IA",{"$f":"'Årsberetning - små'!B2","v":0},{"$f":"'Årsberetning - små'!B3","v":2023},"Kommentarer"]
[{"$f":"'Årsberetning - små'!A12","v":1},{"$f":"IF('Årsberetning - små'!G12<>\"\",1,0)","v":0},{"$f":"SUM(B2:B2)","v":0},{"$f":"IF($B2=1,'Årsberetning - små'!A12,\"\")","v":""},{"$f":"IF($B2=1,'Årsberetning - små'!B12,\"\")","v":""},null,{"$f":"IF(C2=1,'Årsberetning - små'!H12,\" \")","v":" "}]
[{"$f":"'Årsberetning - små'!A13","v":2},{"$f":"IF('Årsberetning - små'!G13<>\"\",1,0)","v":0},0,{"$f":"IF($B3=1,'Årsberetning - små'!A13,\"\")","v":""},{"$f":"IF($B3=1,'Årsberetning - små'!B13,\"\")","v":""},null,{"$f":"IF(C3=1,'Årsberetning - små'!H13,\" \")","v":" "}]
[{"$f":"'Årsberetning - små'!A14","v":3},{"$f":"IF('Årsberetning - små'!G14<>\"\",1,0)","v":0},0,{"$f":"IF($B4=1,'Årsberetning - små'!A14,\"\")","v":""},{"$f":"IF($B4=1,'Årsberetning - små'!B14,\"\")","v":""},null,{"$f":"IF(C4=1,'Årsberetning - små'!H14,\" \")","v":" "}]
[{"$f":"'Årsberetning - små'!A15","v":4},{"$f":"IF('Årsberetning - små'!G15<>\"\",1,0)","v":0},0,{"$f":"IF($B5=1,'Årsberetning - små'!A15,\"\")","v":""},{"$f":"IF($B5=1,'Årsberetning - små'!B15,\"\")","v":""},null,{"$f":"IF(C5=1,'Årsberetning - små'!H15,\" \")","v":" "}]
[{"$f":"'Årsberetning - små'!A18","v":5},{"$f":"IF('Årsberetning - små'!G18<>\"\",1,0)","v":0},0,{"$f":"IF($B6=1,'Årsberetning - små'!A18,\"\")","v":""},{"$f":"IF($B6=1,'Årsberetning - små'!B18,\"\")","v":""},null,{"$f":"IF(C6=1,'Årsberetning - små'!H18,\" \")","v":" "}]
[{"$f":"'Årsberetning - små'!A19","v":6},{"$f":"IF('Årsberetning - små'!G19<>\"\",1,0)","v":0},0,{"$f":"IF($B7=1,'Årsberetning - små'!A19,\"\")","v":""},{"$f":"IF($B7=1,'Årsberetning - små'!B19,\"\")","v":""},null,{"$f":"IF(C7=1,'Årsberetning - små'!H19,\" \")","v":" "}]
[{"$f":"'Årsberetning - små'!A22","v":7},{"$f":"IF('Årsberetning - små'!G22<>\"\",1,0)","v":0},0,{"$f":"IF($B8=1,'Årsberetning - små'!A22,\"\")","v":""},{"$f":"IF($B8=1,'Årsberetning - små'!B22,\"\")","v":""},null,{"$f":"IF(C8=1,'Årsberetning - små'!H22,\" \")","v":" "}]
[{"$f":"'Årsberetning - små'!A23","v":8},{"$f":"IF('Årsberetning - små'!G23<>\"\",1,0)","v":0},0,{"$f":"IF($B9=1,'Årsberetning - små'!A23,\"\")","v":""},{"$f":"IF($B9=1,'Årsberetning - små'!B23,\"\")","v":""},null,{"$f":"IF(C9=1,'Årsberetning - små'!H23,\" \")","v":" "}]
[{"$f":"'Årsberetning - små'!A24","v":9},{"$f":"IF('Årsberetning - små'!G24<>\"\",1,0)","v":0},0,{"$f":"IF($B10=1,'Årsberetning - små'!A24,\"\")","v":""},{"$f":"IF($B10=1,'Årsberetning - små'!B24,\"\")","v":""},null,{"$f":"IF(C10=1,'Årsberetning - små'!H24,\" \")","v":" "}]
[{"$f":"'Årsberetning - små'!A25","v":10},{"$f":"IF('Årsberetning - små'!G25<>\"\",1,0)","v":0},0,{"$f":"IF($B11=1,'Årsberetning - små'!A25,\"\")","v":""},{"$f":"IF($B11=1,'Årsberetning - små'!B25,\"\")","v":""},null,{"$f":"IF(C11=1,'Årsberetning - små'!H25,\" \")","v":" "}]
[{"$f":"'Årsberetning - små'!A26","v":11},{"$f":"IF('Årsberetning - små'!G26<>\"\",1,0)","v":0},0,{"$f":"IF($B12=1,'Årsberetning - små'!A26,\"\")","v":""},{"$f":"IF($B12=1,'Årsberetning - små'!B26,\"\")","v":""},null,{"$f":"IF(C12=1,'Årsberetning - små'!H26,\" \")","v":" "}]
[{"$f":"'Årsberetning - små'!A27","v":12},{"$f":"IF('Årsberetning - små'!G27<>\"\",1,0)","v":0},0,{"$f":"IF($B13=1,'Årsberetning - små'!A27,\"\")","v":""},{"$f":"IF($B13=1,'Årsberetning - små'!B27,\"\")","v":""},null,{"$f":"IF(C13=1,'Årsberetning - små'!H27,\" \")","v":" "}]
[{"$f":"'Årsberetning - små'!A30","v":13},{"$f":"IF('Årsberetning - små'!G30<>\"\",1,0)","v":0},0,{"$f":"IF($B14=1,'Årsberetning - små'!A30,\"\")","v":""},{"$f":"IF($B14=1,'Årsberetning - små'!B30,\"\")","v":""},null,{"$f":"IF(C14=1,'Årsberetning - små'!H30,\" \")","v":" "}]
[{"$f":"'Årsberetning - små'!A33","v":14},{"$f":"IF('Årsberetning - små'!G33<>\"\",1,0)","v":0},0,{"$f":"IF($B15=1,'Årsberetning - små'!A33,\"\")","v":""},{"$f":"IF($B15=1,'Årsberetning - små'!B33,\"\")","v":""},null,{"$f":"IF(C15=1,'Årsberetning - små'!H33,\" \")","v":" "}]
[{"$f":"'Årsberetning - små'!A34","v":15},{"$f":"IF('Årsberetning - små'!G34<>\"\",1,0)","v":0},0,{"$f":"IF($B16=1,'Årsberetning - små'!A34,\"\")","v":""},{"$f":"IF($B16=1,'Årsberetning - små'!B34,\"\")","v":""},null,{"$f":"IF(C16=1,'Årsberetning - små'!H34,\" \")","v":" "}]
[{"$f":"'Årsberetning - små'!A35","v":16},{"$f":"IF('Årsberetning - små'!G35<>\"\",1,0)","v":0},0,{"$f":"IF($B17=1,'Årsberetning - små'!A35,\"\")","v":""},{"$f":"IF($B17=1,'Årsberetning - små'!B35,\"\")","v":""},null,{"$f":"IF(C17=1,'Årsberetning - små'!H35,\" \")","v":" "}]
[{"$f":"'Årsberetning - små'!A36","v":17},{"$f":"IF('Årsberetning - små'!G36<>\"\",1,0)","v":0},0,{"$f":"IF($B18=1,'Årsberetning - små'!A36,\"\")","v":""},{"$f":"IF($B18=1,'Årsberetning - små'!B36,\"\")","v":""},null,{"$f":"IF(C18=1,'Årsberetning - små'!H36,\" \")","v":" "}]
[{"$f":"'Årsberetning - små'!A37","v":18},{"$f":"IF('Årsberetning - små'!G37<>\"\",1,0)","v":0},0,{"$f":"IF($B19=1,'Årsberetning - små'!A37,\"\")","v":""},{"$f":"IF($B19=1,'Årsberetning - små'!B37,\"\")","v":""},null,{"$f":"IF(C19=1,'Årsberetning - små'!H37,\" \")","v":" "}]
[{"$f":"'Årsberetning - små'!A38","v":19},{"$f":"IF('Årsberetning - små'!G38<>\"\",1,0)","v":0},0,{"$f":"IF($B20=1,'Årsberetning - små'!A38,\"\")","v":""},{"$f":"IF($B20=1,'Årsberetning - små'!B38,\"\")","v":""},null,{"$f":"IF(C20=1,'Årsberetning - små'!H38,\" \")","v":" "}]
[{"$f":"'Årsberetning - små'!A39","v":20},{"$f":"IF('Årsberetning - små'!G39<>\"\",1,0)","v":0},0,{"$f":"IF($B21=1,'Årsberetning - små'!A39,\"\")","v":""},{"$f":"IF($B21=1,'Årsberetning - små'!B39,\"\")","v":""},null,{"$f":"IF(C21=1,'Årsberetning - små'!H39,\" \")","v":" "}]
[{"$f":"'Årsberetning - små'!A45","v":21},{"$f":"IF('Årsberetning - små'!G45<>\"\",1,0)","v":0},0,{"$f":"IF($B22=1,'Årsberetning - små'!A45,\"\")","v":""},{"$f":"IF($B22=1,'Årsberetning - små'!B45,\"\")","v":""},null,{"$f":"IF(C22=1,'Årsberetning - små'!H45,\" \")","v":" "}]
[{"$f":"'Årsberetning - små'!A46","v":22},{"$f":"IF('Årsberetning - små'!G46<>\"\",1,0)","v":0},0,{"$f":"IF($B23=1,'Årsberetning - små'!A46,\"\")","v":""},{"$f":"IF($B23=1,'Årsberetning - små'!B46,\"\")","v":""},null,{"$f":"IF(C23=1,'Årsberetning - små'!H46,\" \")","v":" "}]
[{"$f":"'Årsberetning - små'!A47","v":23},{"$f":"IF('Årsberetning - små'!G47<>\"\",1,0)","v":0},0,{"$f":"IF($B24=1,'Årsberetning - små'!A47,\"\")","v":""},{"$f":"IF($B24=1,'Årsberetning - små'!B47,\"\")","v":""},null,{"$f":"IF(C24=1,'Årsberetning - små'!H47,\" \")","v":" "}]
[{"$f":"'Årsberetning - små'!A48","v":24},{"$f":"IF('Årsberetning - små'!G48<>\"\",1,0)","v":0},0,{"$f":"IF($B25=1,'Årsberetning - små'!A48,\"\")","v":""},{"$f":"IF($B25=1,'Årsberetning - små'!B48,\"\")","v":""},null,{"$f":"IF(C25=1,'Årsberetning - små'!H48,\" \")","v":" "}]
[{"$f":"'Årsberetning - små'!A51","v":25},{"$f":"IF('Årsberetning - små'!G51<>\"\",1,0)","v":0},0,{"$f":"IF($B26=1,'Årsberetning - små'!A51,\"\")","v":""},{"$f":"IF($B26=1,'Årsberetning - små'!B51,\"\")","v":""},null,{"$f":"IF(C26=1,'Årsberetning - små'!H51,\" \")","v":" "}]